Cogmind - Beta 12 @@@ ROGUE MODE // 2023.03.08 @ 21:42:58 Player: Plexion Result: Destroyed by S-43 Plague with Heavy Machine Gun Performance ------------- Evolutions (7) 3500 Regions Visited (30) 6000 Robots Destroyed (204) 1020 Value Destroyed (5562) 5562 Prototype IDs (66) 1320 Alien Tech Used (2) 400 Bonus (-1957) -1957 TOTAL SCORE: 15845 Bonus ------- High Alert Combat Kills 291 Follower Combat Kills 3334 Aligned with FarCom 300 Met Data Miner 300 Met Imprinter 300 Was Imprinted 300 Met Zhirov 300 A7 Reached Mainframe 300 Met R17 at Cetus 500 Friendly Fire -7882 Cogmind --------- Core Integrity 0/1300 Matter 208/300 Energy 100/100 System Corruption 14% Temperature Cool (0) Movement Core (50) Location -3/Research Parts ------- > --- POWER (2) -------- (None) > --- PROPULSION (6) --- (None) > --- UTILITY (11) ----- Machine Analyzer Advanced System Shield > --- WEAPON (2) ------- CR-A16's Behemoth Slayer > --- INVENTORY (5) ---- Combat Gravmag System Quantum Capacitor Authchip [Device] Force Lance Peak State ------------ > --- POWER ------------ Light Antimatter Reactor Micro Antimatter Reactor > --- PROPULSION ------- Cooled Gravmag System Combat Gravmag System Combat Gravmag System Combat Gravmag System Combat Gravmag System Combat Gravmag System > --- UTILITY ---------- Advanced Cooling System Large Storage Unit Advanced Energy Well Machine Analyzer Advanced Sensor Array Centrium Medium Armor Plating Medium Regenerative Plating Improved Hacking Suite Improved Hacking Suite Advanced Hacking Suite Advanced System Shield > --- WEAPON ----------- Heavy Phase Cannon CR-A16's Behemoth Slayer > --- INVENTORY -------- Cooled Gravmag System Combat Gravmag System Advanced Energy Well Tactical Coordination Suite Precision Matter Filter Quantum Capacitor Improved Medium Armor Plating Advanced Hacking Suite Advanced Component Analysis Suite Mobile Refinery Mk. CCLXVII Transdimensional Reconstructor Proton Cannon Heavy Missile Launcher Improved Plasma Cutter [Rating: 138] Favorites ----------- Power Deuterium Engine Engine Deuterium Engine Power Core Neutrino Core Reactor Light Antimatter Reactor Propulsion Combat Gravmag System Treads Light Treads Wheel Compact Wheel Hover Unit Combat Gravmag System Flight Unit Improved Flight Unit Utility Machine Analyzer Device Advanced Sensor Array Storage Huge Storage Unit Processor Machine Analyzer Hackware Improved Hacking Suite Protection Medium Regenerative Plating Weapon Heavy Assault Rifle Energy Cannon Heavy Phase Cannon Ballistic Gun Heavy Assault Rifle Ballistic Cannon Tri-rail Accelerator Launcher Rocket Launcher Special Weapon Improved Plasma Cutter Impact Weapon Heavy Flail Slashing Weapon Phasing Sabre Piercing Weapon CR-A16's Pointy Stick Build | -11 -10 -10 -9 -9 -9 -8 -8 -7 -7 -7 -7 -7 -7 -6 -6 -6 -6 -6 -5 -5 -5 -5 -5 -5 -4 -4 -4 -4 -3 -3 ------- Run | Jun Mat Min Mat Min Exi Min Mat Fac Was Fac Low Low Dat Pro Fac Low Low Zio Pro Fac Ext Cet Arc Hub Fac Upp Upp Zhi Pro Res Slots Evolved 14 | . . . 2 . . . 2 2 . . . . . . 2 . . . . 2 . . . . 2 . . . . 2 Power 1 | . . . . . . . . . . . . . . . . . . . . . . . . . . . . . . 1 Propulsion 4 | . . . 1 . . . . . . . . . . . 1 . . . . . . . . . 1 . . . . 1 Utility 9 | . . . 1 . . . 2 2 . . . . . . 1 . . . . 2 . . . . 1 . . . . . Weapon . | . . . . . . . . . . . . . . . . . . . . . . . . . . . . . . . Parts Attached 293 | 6 10 . 18 1 19 1 22 13 1 6 4 6 . 2 29 6 . 3 1 10 6 10 12 1 31 8 16 11 . 40 Power 20 | 1 . . 1 . 1 . 2 1 . . . . . . 1 2 . . 1 1 1 . . . 2 . . 2 . 4 Engine 7 | 1 . . 1 . 1 . 1 . . . . . . . . 2 . . 1 . . . . . . . . . . . Core 6 | . . . . . . . 1 1 . . . . . . 1 . . . . 1 1 . . . . . . . . 1 Reactor 7 | . . . . . . . . . . . . . . . . . . . . . . . . . 2 . . 2 . 3 Propulsion 48 | 2 2 . 6 . 6 . 5 3 . . . . . . 8 1 . . . . . . . . 7 2 . . . 6 Treads 18 | 2 2 . 5 . 6 . 3 . . . . . . . . . . . . . . . . . . . . . . . Leg . | . . . . . . . . . . . . . . . . . . . . . . . . . . . . . . . Wheel 1 | . . . . . . . 1 . . . . . . . . . . . . . . . . . . . . . . . Hover 20 | . . . . . . . . . . . . . . . 4 1 . . . . . . . . 7 2 . . . 6 Flight 9 | . . . 1 . . . 1 3 . . . . . . 4 . . . . . . . . . . . . . . . Utility 134 | 1 2 . 5 . 6 . 7 7 . 5 3 1 . . 15 2 . 2 . 3 4 6 6 1 14 4 11 7 . 22 Device 58 | . . . . . . . 1 1 . 1 2 . . . 6 1 . 2 . 1 2 2 3 . 8 3 8 3 . 14 Storage 9 | 1 1 . . . 1 . . . . . . . . . 1 . . . . . 1 1 . . 1 . . 1 . 1 Processor 8 | . . . 1 . . . . 3 . 1 . 1 . . . . . . . . . . . . 1 . . . . 1 Hackware 22 | . . . . . . . 2 3 . 2 . . . . 6 . . . . 2 1 . 2 1 2 1 . . . . Protection 37 | . 1 . 4 . 5 . 4 . . 1 1 . . . 2 1 . . . . . 3 1 . 2 . 3 3 . 6 Artifact . | . . . . . . . . . . . . . . . . . . . . . . . . . . . . . . . Weapon 91 | 2 6 . 6 1 6 1 8 2 1 1 1 5 . 2 5 1 . 1 . 6 1 4 6 . 8 2 5 2 . 8 Energy Gun . | . . . . . . . . . . . . . . . . . . . . . . . . . . . . . . . Energy Cannon 20 | . . . . . . . . . . . . 2 . . . . . . . 2 . 1 2 . 2 1 3 1 . 6 Ballistic Gun 25 | 2 3 . 5 . 5 . 5 . 1 . 1 . . . . . . . . . . 2 1 . . . . . . . Ballistic Cannon 4 | . . . . . . . . . . . . . . . . . . . . 2 . . 1 . 1 . . . . . Launcher 21 | . 3 . 1 1 1 1 3 . . 1 . 1 . 1 2 . . . . . . . . . 1 1 2 . . 2 Special Weapon 1 | . . . . . . . . . . . . . . . . . . . . . . 1 . . . . . . . . Impact Weapon 1 | . . . . . . . . 1 . . . . . . . . . . . . . . . . . . . . . . Slashing Weapon 15 | . . . . . . . . 1 . . . 2 . 1 3 1 . . . 1 1 . 1 . 4 . . . . . Piercing Weapon 4 | . . . . . . . . . . . . . . . . . . 1 . 1 . . 1 . . . . 1 . . Special Melee Weapon . | . . . . . . . . . . . . . . . . . . . . . . . . . . . . . . . Unidentified Prototypes 18 | . . . 1 . . . 3 . . . . . . . 1 . . 1 . 1 1 4 . . 1 . . 3 . 2 Corrupted Parts 3 | . . . . . . . . . . . . . . . . . . . . . . 1 . . 1 1 . . . . System Corruption 4 | . . . . . . . . . . . . . . . . . . . . . . 2 . . 1 1 . . . . Parts Lost 57 | . . . 1 . 19 . 4 2 . . 2 1 . . . 1 . . . . 1 . . . 2 1 2 . . 21 Power 7 | . . . . . 2 . 1 . . . . . . . . 1 . . . . . . . . . . . . . 3 Propulsion 17 | . . . . . 7 . 2 . . . . 1 . . . . . . . . . . . . 1 . . . . 6 Utility 24 | . . . 1 . 5 . . 2 . . 2 . . . . . . . . . 1 . . . . 1 2 . . 10 Weapon 9 | . . . . . 5 . 1 . . . . . . . . . . . . . . . . . 1 . . . . 2 Highest Loss Streak 13 | . . . 1 . 13 . 2 2 . . 2 1 . . . 1 . . . . 1 . . . 1 1 1 . . 12 To Critical Strikes 11 | . . . . . 11 . . . . . . . . . . . . . . . . . . . . . . . . . Average Slot Usage (%) 93 | . 99 100 100 100 96 52 71 94 100 100 85 83 76 76 93 90 93 97 100 93 93 94 97 100 98 99 99 93 100 95 Engine 4 | . 14 14 11 11 10 . 4 . . . . . . . . 3 6 6 6 1 . . . . . . . . . . Core 1 | . . . . . . . . 6 7 7 7 7 7 7 6 . . . . 4 5 5 5 5 . . . . . . Reactor 1 | . . . . . . . . . . . . . . . . . . . . . . . . . 4 5 5 5 5 7 Treads 12 | . 28 28 33 33 32 22 20 . . . . . . . . . . . . . . . . . . . . . . . Hover 11 | . . . . . . . . . . . . . . . 11 26 26 26 26 23 23 23 23 23 25 25 26 26 26 26 Flight 2 | . . . . . . . . 22 23 23 23 21 15 15 12 . . . . . . . . . . . . . . . Device 4 | . . . . . . . . 7 7 7 . . . . 5 5 6 6 6 11 10 6 . 5 8 5 7 10 10 8 Storage 7 | . 14 14 11 11 11 11 9 . . . . . . . 2 6 6 6 6 5 5 5 5 5 5 5 5 9 10 7 Processor 10 | . . . 11 11 11 11 9 17 23 18 15 17 23 23 13 13 13 13 13 11 11 11 11 11 10 10 10 5 5 8 Hackware 14 | . . . . . . . 2 21 23 26 23 23 23 23 30 26 26 26 26 23 22 23 20 23 21 26 22 21 21 18 Protection 6 | . 13 14 11 11 10 . 9 . . . 2 7 7 7 . . . . . . . 3 16 11 9 10 10 9 10 5 Energy Cannon 1 | . . . . . . . . . . . . . . . . . . . . 2 5 2 . 5 4 5 4 . 5 3 Ballistic Gun 7 | . 27 28 21 11 16 . 10 7 7 7 4 . . . . . . . . . . . . . . . . . . . Launcher 1 | . . . . 11 3 8 2 . . . . . . . 2 . . . . . . . . . . . . . . . Slashing Weapon 2 | . . . . . . . . 1 7 7 7 4 . . 5 6 6 6 6 1 . 5 4 5 4 5 5 1 . . Piercing Weapon 1 | . . . . . . . . . . . . . . . . . . 3 6 4 4 . 3 . . . . 3 5 4 Naked Turns . | . . . . . . . . . . . . . . . . . . . . . . . . . . . . . . . Heaviest Build 103 | 13 92 91 102 103 103 44 73 14 14 20 14 13 9 9 29 24 24 27 30 52 61 58 64 55 65 62 70 70 65 80 Greatest Support 81 | 40 46 46 69 60 63 43 60 15 15 15 15 15 10 10 56 56 56 56 56 56 56 56 56 56 70 70 70 70 70 81 Greatest Overweight (x) 16 | . 1 1 1 1 1 1 16 . . 1 . . . . 1 1 . . . . 1 1 1 . . 1 . . . 1 Average Overweight (x) . | . . 1 1 1 . . 1 . . . . . . . . . . . . . . . . . . . . . . . Largest Inventory Capacity 25 | 8 25 25 25 25 25 20 20 20 5 5 5 5 5 5 10 10 10 10 10 10 15 15 15 15 15 15 15 15 15 15 Average Capacity 15 | 6 21 25 25 25 21 20 20 5 5 5 5 5 5 5 6 10 10 10 10 10 10 15 15 15 15 15 15 15 15 14 Most Carried 25 | 2 11 16 25 25 25 9 19 18 5 5 5 5 5 5 9 10 10 10 10 10 12 15 15 15 15 15 15 15 15 15 Average Carried 13 | . 9 13 22 24 17 8 14 4 5 4 4 4 4 4 5 9 10 9 10 9 10 13 14 14 14 14 14 14 15 14 Final Capacity 25 | 8 25 25 25 25 20 20 20 5 5 5 5 5 5 5 10 10 10 10 10 10 15 15 15 15 15 15 15 15 15 5 Final Carried 25 | 2 11 16 24 25 9 8 19 5 5 5 5 5 4 5 9 10 10 10 10 10 11 15 15 15 15 15 15 15 15 5 Class Distribution -------------------- 40% | Hacker-Scout 32% | Mutant 11% | Hacker-Mutant 9% | Scavenger-Mutant 4% | Wizard-Scout Dominant Class ---------------- Mutant | -10/Materials Mutant | -10/Mines Mutant | -9/Materials Mutant | -9/Mines Scavenger-Mutant | -9/Exiles Mutant | -8/Mines Scavenger-Mutant | -8/Materials Hacker-Scout | -7/Factory Hacker-Scout | -7/Waste Hacker-Scout | -7/Factory Hacker-Sprinter | -7/Lower Caves Hacker-Sprinter | -7/Lower Caves Hacker-Sprinter | -7/Data Miner Hacker-Mutant | -6/Proximity Caves Hacker-Scout | -6/Factory Hacker-Scout | -6/Lower Caves Hacker-Scout | -6/Lower Caves Hacker-Scout | -6/Zion Hacker-Scout | -5/Proximity Caves Hacker-Scout | -5/Factory Hacker-Scout | -5/Extension Hacker-Mutant | -5/Cetus Hacker-Mutant | -5/Archives Hacker-Scout | -5/Hub_04(d) Hacker-Scout | -4/Factory Wizard-Scout | -4/Upper Caves Hacker-Scout | -4/Upper Caves Hacker-Mutant | -4/Zhirov Hacker-Mutant | -3/Proximity Caves Hacker-Scout | -3/Research Resources | -11 -10 -10 -9 -9 -9 -8 -8 -7 -7 -7 -7 -7 -7 -6 -6 -6 -6 -6 -5 -5 -5 -5 -5 -5 -4 -4 -4 -4 -3 -3 ----------- Run | Jun Mat Min Mat Min Exi Min Mat Fac Was Fac Low Low Dat Pro Fac Low Low Zio Pro Fac Ext Cet Arc Hub Fac Upp Upp Zhi Pro Res Matter Collected 5011 | 231 254 101 580 49 . 15 899 147 . 61 . 30 . 239 371 171 27 69 10 50 90 128 241 . 410 116 265 187 10 260 Remotely . | . . . . . . . . . . . . . . . . . . . . . . . . . . . . . . . Salvage Created 7976 | . 388 52 1023 96 2 169 1131 147 . 73 . 82 . 49 277 . 37 . . 694 499 256 617 . 758 26 257 343 22 978 Parts 460 | . 35 2 69 12 . 8 77 7 . 8 . 13 . 4 22 . 2 . . 24 15 24 28 . 29 . 18 2 3 58 Haulers Intercepted 12 | . 1 . 4 . . . 3 . . . . . . . . . . . . 1 2 . . . 1 . . . . . Recyclers Shooed 7 | . . . . . . . 3 1 . . . . . . . . . . . . . . . . . . . . . 3 Parts Field Recycled . | . . . . . . . . . . . . . . . . . . . . . . . . . . . . . . . Retrieved Matter . | . . . . . . . . . . . . . . . . . . . . . . . . . . . . . . . Parts Self-Destructed 33 | . . . . . . . . . . . . 9 . 10 . 3 . . 2 . . . . . . . 8 1 . . Prevented 5 | . . . . . . . . . . . . . . . . . . . 5 . . . . . . . . . . . Kills | -11 -10 -10 -9 -9 -9 -8 -8 -7 -7 -7 -7 -7 -7 -6 -6 -6 -6 -6 -5 -5 -5 -5 -5 -5 -4 -4 -4 -4 -3 -3 ------- Run | Jun Mat Min Mat Min Exi Min Mat Fac Was Fac Low Low Dat Pro Fac Low Low Zio Pro Fac Ext Cet Arc Hub Fac Upp Upp Zhi Pro Res Combat Hostiles Destroyed 123 | . 14 2 17 4 1 6 22 . . . . 11 . 4 4 . . . . . . 2 4 . 6 . 10 . . 16 Melee 2 | . . . . . . . . . . . . . . . . . . . . . . . . . . . . . . 2 Guns 36 | . 8 2 15 . . . 10 . . . . . . . . . . . . . . 1 . . . . . . . . Cannons 10 | . . . . . . . . . . . . . . . . . . . . . . 1 4 . 1 . . . . 4 AOE 71 | . 6 . 2 4 1 6 12 . . . . 11 . 4 4 . . . . . . . . . 4 . 10 . . 7 Classes Destroyed 19 | . 6 1 3 2 . 1 2 . . . . . . . . . 1 . . . . . . . . 1 . . . 2 Worker 13 | . 1 . 1 . . 2 . 1 . . . . . . 1 . . . . 4 . . . . 1 . . . . 2 Builder 7 | . . . . 1 . . 1 . . 1 . . . . 1 . . . . 2 1 . . . . . . . . . Tunneler 2 | . . . . . . . 1 1 . . . . . . . . . . . . . . . . . . . . . . Hauler 12 | . 1 . 4 . . . 3 . . . . . . . . . . . . 1 2 . . . 1 . . . . . Recycler 15 | . . . . 1 . . 4 1 . . . . . . 1 . . . . 2 2 . . . 3 . . . . 1 Mechanic 3 | . . . 1 . . . . 1 . . . . . . . . . . . . . . . . 1 . . . . . Operator 14 | . 1 . 1 . . . 1 . . 1 . . . . 1 . . . . . . . 9 . . . . . . . Watcher 13 | . 2 . 1 . . . 1 . . 2 . . . . 2 . . . . 1 . . . . 2 . . . . 2 Swarmer 62 | . 9 . 2 4 . . 7 . . . . 11 . 4 4 . . . . . . 1 . . 4 . 10 . . 6 Cutter 3 | . . . . . . . . . . . . . . . . . . . . . . . . . . . . . . 3 Grunt 29 | . 5 1 10 . . 5 8 . . . . . . . . . . . . . . . . . . . . . . . Brawler 1 | . . . . . . 1 . . . . . . . . . . . . . . . . . . . . . . . . Duelist 1 | . . . 1 . . . . . . . . . . . . . . . . . . . . . . . . . . . Sentry 18 | . . . 4 . . . 6 . . . . . . . . . . . . . . . 4 . 2 . . . . 2 Hunter 3 | . . . . . . . 1 . . . . . . . . . . . . . . . . . . . . . . 2 Programmer 3 | . . . . . . . . . . . . . . . . . . . . . . . . . . . . . . 3 Cetus Guard 1 | . . . . . . . . . . . . . . . . . . . . . . 1 . . . . . . . . Enhanced Grunt 1 | . . . . . . . . . . . . . . . . . . . . . . . 1 . . . . . . . Packrat 2 | . . . . . . . . . . . . . . . . . . . . . . . . . . . 2 . . . Tinkerer 2 | . . . . . . . . . . . . . . . . . 1 . . . . . . . . . . . 1 . Assembled 2 | . . 1 . . 1 . . . . . . . . . . . . . . . . . . . . . . . . . Thug 1 | . . . . . . . . . . . . . . . . . . . . . . 1 . . . . . . . . Martyr 1 | . . . . . . . . . . . . . . . . . . . . . . . . . . 1 . . . . Best Kill Streak 11 | . 7 1 6 5 1 4 9 1 . 1 . 11 . 4 5 . . . . 6 1 1 3 . 5 . 5 . . 5 Combat Bots Only 11 | . 6 1 3 4 1 3 7 . . . . 11 . 4 4 . . . . . . 1 3 . 5 . 5 . . 5 Max Kills in Single Turn 4 | . 4 1 2 2 1 2 4 1 . 2 . 3 . 3 2 . 1 . . 1 1 1 1 . 2 1 3 . 1 3 Gunslinging 1 | . . . 1 . . . . . . . . . . . . . . . . . . . . . . . . . . . Exploded 4 | . 3 . 2 2 1 1 4 . . . . 3 . 3 2 . . . . . . . . . 2 . 3 . . 3 Melee 1 | . . . . . . . . . . . . . . . . . . . . . . . . . . . . . . 1 Uniques/NPCs Destroyed 1 | . . . . . . . . . . . . . . . . . . . . . . 1 . . . . . . . . A7 (-5/Cetus) Combat | -11 -10 -10 -9 -9 -9 -8 -8 -7 -7 -7 -7 -7 -7 -6 -6 -6 -6 -6 -5 -5 -5 -5 -5 -5 -4 -4 -4 -4 -3 -3 -------- Run | Jun Mat Min Mat Min Exi Min Mat Fac Was Fac Low Low Dat Pro Fac Low Low Zio Pro Fac Ext Cet Arc Hub Fac Upp Upp Zhi Pro Res Damage Taken 11461 | . 239 106 939 53 2069 134 1171 . . . 179 436 . 14 141 329 . . . 54 203 12 396 48 670 107 431 . 22 3708 Core 2594 | . 25 30 157 8 209 . 423 . . . . 133 . 14 34 93 . . . 18 . . 55 . 107 12 58 . . 1218 Absorbed by Shields 674 | . . . . . . . . . . . . . . . . . . . . . . 12 . . . . . . . 662 Regen/Repaired (Parts) 1058 | . . . . . . . 11 . . . . . . . 266 . . . . . . . 196 2 348 17 40 15 . 163 Core Remaining (%) 68 | 100 . 78 . . . 6 23 . . . . . . 79 . . . . 85 . . . . 92 . . . . 84 . Volleys Fired 529 | 1 40 8 68 3 53 13 94 6 . . . 11 . 2 5 . . . . 9 9 74 19 4 24 7 9 . 11 59 Largest 2 | 2 2 2 2 1 2 1 2 1 . . . 1 . 1 1 . . . . 1 1 1 1 1 1 1 1 . 1 1 Hottest 94 | 40 40 40 46 33 46 33 53 25 . . . 80 . 39 39 . . . . 90 90 90 60 90 90 90 90 . 90 94 Shots Fired 685 | 2 75 16 134 3 82 13 109 6 . 1 . 11 . 2 5 . . . . 9 9 74 19 4 25 7 9 . 11 59 Gun 404 | 2 70 16 132 . 81 . 92 6 . 1 . . . . . . . . . . . 2 2 . . . . . . . Cannon 143 | . . . . . . . . . . . . 3 . . . . . . . 9 9 6 17 4 20 7 2 . 11 55 Launcher 72 | . 5 . 2 3 1 13 17 . . . . 8 . 2 5 . . . . . . . . . 5 . 7 . . 4 Special 66 | . . . . . . . . . . . . . . . . . . . . . . 66 . . . . . . . . Kinetic 427 | 2 70 16 132 . 81 . 92 6 . 1 . . . . . . . . . . . 2 19 . 6 . . . . . Thermal 164 | . . . . . . . . . . . . 3 . . . . . . . 9 9 72 . 4 14 7 2 . 11 33 Explosive 72 | . 5 . 2 3 1 13 17 . . . . 8 . 2 5 . . . . . . . . . 5 . 7 . . 4 Electromagnetic 22 | . . . . . . . . . . . . . . . . . . . . . . . . . . . . . . 22 Robot Hit Streak 23 | 1 6 4 19 2 18 23 11 2 . 3 . 4 . . . . . . . . 1 5 14 . 4 1 2 . 1 5 Robot Miss Streak 7 | 1 3 4 5 . 1 1 4 1 . . . . . . . . . . . . 1 4 7 . 4 1 3 . 4 4 Penetration Max 1 | . . . . . . . 1 . . . . . . . . . . . . . . . . . . . . . . . Secondary Targets 1 | . . . 1 . . . . . . . . . . . . . . . . . . . . . . . . . . . Max Gunslinging Chain 1 | . . . 1 . . . . . . . . . . . . . . . . . . . . . . . . . . . Shots Hit Robots 505 | 1 39 5 99 1 67 6 71 8 . 4 . 1 . . 11 . 4 . . 13 9 38 37 . 32 1 5 7 2 44 Core Hits 322 | . 27 4 42 5 12 16 53 3 . 4 . 17 . 5 11 . 3 . . 8 4 15 23 . 22 1 11 2 1 33 Critical Kills 3 | . 1 . . . . . 1 . . . . . . . . . . . . . . . . . 1 . . . . . Critical Parts Destroyed 1 | . . . . . . . . . . . . . . . . . . . . . . 1 . . . . . . . . Critical Strikes 19 | . 1 . . . 1 . 1 . . . . . . . . . . . . 1 1 7 2 . 1 . . . . 4 Meltdown 1 | . . . . . . . . . . . . . . . . . . . . . . . . . 1 . . . . . Destroy 4 | . 1 . . . 1 . 1 . . . . . . . . . . . . . . 1 . . . . . . . . Blast 1 | . . . . . . . . . . . . . . . . . . . . . . . 1 . . . . . . . Corrupt 1 | . . . . . . . . . . . . . . . . . . . . . . . . . . . . . . 1 Sever 7 | . . . . . . . . . . . . . . . . . . . . . . 6 1 . . . . . . . Impale 5 | . . . . . . . . . . . . . . . . . . . . 1 1 . . . . . . . . 3 Melee Attacks 333 | . . . . . . . . 15 . 22 4 1 . 1 56 2 9 1 6 43 20 . 26 1 45 13 8 7 8 45 Impact 12 | . . . . . . . . 12 . . . . . . . . . . . . . . . . . . . . . . Slashing 199 | . . . . . . . . 3 . 22 4 1 . 1 56 2 9 1 3 1 5 . 24 1 45 13 8 . . . Piercing 122 | . . . . . . . . . . . . . . . . . . . 3 42 15 . 2 . . . . 7 8 45 Sneak Attacks 48 | . . . . . . . . 2 . . . . . . 4 . 4 . . 9 5 . 9 . 7 . 1 . 1 6 Combat Hostiles . | . . . . . . . . . . . . . . . . . . . . . . . . . . . . . . . Follow-up Attacks 1 | . . . . . . . . . . . . . . . . . . . 1 . . . . . . . . . . . Damage Inflicted 21867 | 10 705 67 1674 268 1333 895 2427 357 . 253 . 768 . 332 1073 . 321 . . 874 542 976 2476 . 2211 78 1038 489 113 2587 Guns 4551 | 10 393 67 1525 . 1034 . 1352 68 . . . . . . . . . . . . . 53 49 . . . . . . . Cannons 2748 | . . . . . . . . . . . . . . . . . . . . . 35 207 955 . 373 78 . . 33 1067 Explosions 6396 | . 312 . 149 252 43 888 1063 . . 113 . 768 . 332 409 . . . . . . . . . 437 . 872 . . 758 Melee 7136 | . . . . . . . . 289 . 140 . . . . 664 . 321 . . 874 507 . 1472 . 1401 . 166 489 80 733 Ramming 320 | . . . . 16 256 7 12 . . . . . . . . . . . . . . . . . . . . . . 29 Kinetic 5778 | 10 393 67 1525 . 1034 . 1352 68 . . . . . . . . . . . . . 53 1004 . 272 . . . . . Thermal 1824 | . . . . . . . . . . . . . . . . . . . . . 35 923 . . 101 78 . . 33 654 Explosive 6396 | . 312 . 149 252 43 888 1063 . . 113 . 768 . 332 409 . . . . . . . . . 437 . 872 . . 758 Electromagnetic 413 | . . . . . . . . . . . . . . . . . . . . . . . . . . . . . . 413 Impact 145 | . . . . . . . . 145 . . . . . . . . . . . . . . . . . . . . . . Slashing 4414 | . . . . . . . . 144 . 140 . . . . 664 . 321 . . . 106 . 1472 . 1401 . 166 . . . Piercing 2577 | . . . . . . . . . . . . . . . . . . . . 874 401 . . . . . . 489 80 733 Highest Corruption 14 | . . . . . . . . . 8 8 11 11 11 11 5 5 5 5 . . . 2 2 2 2 3 3 3 1 14 Average Corruption 4 | . . . . . . . . . 8 8 10 11 11 11 4 5 5 5 . . . 2 2 2 1 2 3 2 1 2 Corruption Purged 2 | . . . . . . . . . . . . . . . . . . . . . . . . . . . . 2 . . Corruption Blocked 6 | . . . . . . . . . . . . . . . . . . . . 6 . . . . . . . . . . Effects 138 | . . . . . . . . . 1 18 5 7 2 18 6 11 16 4 . . . 1 6 1 8 13 11 2 2 6 Message Errors 32 | . . . . . . . . . . 3 2 2 . 5 1 2 3 2 . . . . 1 . 2 5 1 . 1 2 Matter Fused 36 | . . . . . . . . . . 5 2 . 1 4 2 2 8 . . . . . 2 . 1 4 4 . . 1 Heat Flow Errors 19 | . . . . . . . . . . 4 . 2 1 2 . 2 1 . . . . . . . 2 2 2 1 . . Energy Discharges 14 | . . . . . . . . . . . . 1 . 3 1 2 1 1 . . . 1 2 . . . . 1 1 . Parts Rejected 3 | . . . . . . . . . 1 . . . . . . 1 . . . . . . . . . . . . . 1 Parts Fused 3 | . . . . . . . . . . . . . . 1 . . . . . . . . . . . . 1 . . 1 Data Loss (minor) 17 | . . . . . . . . . . 4 . 1 . . . 1 3 . . . . . 1 1 1 2 2 . . 1 Data Loss (major) 9 | . . . . . . . . . . 1 1 . . 2 2 1 . 1 . . . . . . . . 1 . . . Misfires 2 | . . . . . . . . . . 1 . . . . . . . . . . . . . . 1 . . . . . Alerts 2 | . . . . . . . . . . . . 1 . . . . . . . . . . . . 1 . . . . . Misdirections 1 | . . . . . . . . . . . . . . 1 . . . . . . . . . . . . . . . . Overload Shots . | . . . . . . . . . . . . . . . . . . . . . . . . . . . . . . . Overflow Damage 1766 | . 3 . 3 2 . 1 27 151 . 6 . 21 . . 185 . . . . 186 49 15 389 . 221 . 136 236 . 135 Projectiles 20 | . . . . . . . . . . . . . . . . . . . . . . 15 . . . . . . . 5 Explosions 108 | . 3 . 3 2 . 1 27 . . . . 21 . . 11 . . . . . . . . . 18 . . . . 22 Melee 1638 | . . . . . . . . 151 . 6 . . . . 174 . . . . 186 49 . 389 . 203 . 136 236 . 108 Knockbacks 4 | . . . . . 1 . . 1 . . . . . . . . . . . . . . 2 . . . . . . . Impact 2 | . . . . . 1 . . 1 . . . . . . . . . . . . . . . . . . . . . . Kinetic 2 | . . . . . . . . . . . . . . . . . . . . . . . 2 . . . . . . . Secondary . | . . . . . . . . . . . . . . . . . . . . . . . . . . . . . . . Self-Inflicted Damage 492 | . . . 40 . . 95 106 . . . . . . . . . . . . . . . . . . . 52 . . 199 Shots 16 | . . . 1 . . 3 7 . . . . . . . . . . . . . . . . . . . 1 . . 4 Rammed 90 | . . . . 2 79 2 2 . . . . . . . . . . . . . . . . . . . . . . 5 Targets Rammed 91 | . . . . 3 79 2 2 . . . . . . . . . . . . . . . . . . . . . . 5 Kicked . | . . . . . . . . . . . . . . . . . . . . . . . . . . . . . . . Crushed 1 | . . . . 1 . . . . . . . . . . . . . . . . . . . . . . . . . . Highest Temperature 373 | . 30 12 30 . 2 . 118 4 . 260 26 257 222 251 373 228 281 . . 134 168 138 150 120 257 200 294 152 . 82 Average Temperature 45 | . 7 5 6 . 1 . 41 3 . 103 21 88 188 113 179 104 144 . . 55 91 47 24 61 45 51 26 20 . 19 Received Heat Transfer 1448 | . 78 . 381 . . 9 576 . . . 72 72 . . 18 36 . . . 9 36 . 63 . 42 . . . . 56 Effects 5 | . . . . . . . . . . . . 3 1 . . . 1 . . . . . . . . . . . . . Energy Bleed 2 | . . . . . . . . . . . . . 1 . . . 1 . . . . . . . . . . . . . Interference 3 | . . . . . . . . . . . . 3 . . . . . . . . . . . . . . . . . . Siege Activations . | . . . . . . . . . . . . . . . . . . . . . . . . . . . . . . . Robots Corrupted 3 | . . . . . . . . . . . . . . . . . . . . . . . . . . . . . . 3 Combat Hostiles 3 | . . . . . . . . . . . . . . . . . . . . . . . . . . . . . . 3 Parts Fried 5 | . . . . . . . . . . . . . . . . . . . . . . . . . . . . . . 5 Impact Corruptions 3 | . . . . . 1 . . 2 . . . . . . . . . . . . . . . . . . . . . . Robots Melted 1 | . . . . . . . . . . . . . . . . . . . . . . . . . 1 . . . . . Combat Hostiles 1 | . . . . . . . . . . . . . . . . . . . . . . . . . 1 . . . . . Parts Melted 2 | . . . 1 . . . . . . . . . . . . . . . . . . . . . . . . . . 1 Heat Transferred 2812 | . . . . . . . . . . . . . . . . . . . . . 37 1924 . . 111 74 . . 37 629 Parts Sabotaged . | . . . . . . . . . . . . . . . . . . . . . . . . . . . . . . . Parts Stolen . | . . . . . . . . . . . . . . . . . . . . . . . . . . . . . . . Parts Stripped . | . . . . . . . . . . . . . . . . . . . . . . . . . . . . . . . Power Chain Reactions . | . . . . . . . . . . . . . . . . . . . . . . . . . . . . . . . Missiles Intercepted . | . . . . . . . . . . . . . . . . . . . . . . . . . . . . . . . Alert | -11 -10 -10 -9 -9 -9 -8 -8 -7 -7 -7 -7 -7 -7 -6 -6 -6 -6 -6 -5 -5 -5 -5 -5 -5 -4 -4 -4 -4 -3 -3 ------- Run | Jun Mat Min Mat Min Exi Min Mat Fac Was Fac Low Low Dat Pro Fac Low Low Zio Pro Fac Ext Cet Arc Hub Fac Upp Upp Zhi Pro Res Peak Influence 779 | . 269 267 255 115 . 234 522 297 163 275 . . . . 729 . . . . 564 428 779 488 125 262 . . . . 688 Initial 694 | . . 104 20 58 . . 91 198 103 114 . . . . 694 . . . . 300 134 190 311 100 60 . . . . 600 Average 241 | . 97 132 75 29 . 116 339 252 126 198 . . . . 385 . . . . 333 249 535 450 113 126 . . . . 523 Maximum Alert Level 3 | . 1 1 1 . . 1 2 1 . 1 . . . . 3 . . . . 2 2 3 2 . 1 . . . . 2 Low Security (%) 47 | 100 87 76 95 100 . 77 21 8 100 39 . . . . 11 . . . . 5 29 4 . 100 73 . . . . . Level 1 30 | . 12 23 4 . . 22 31 91 . 60 . . . . 54 . . . . 71 67 25 16 . 26 . . . . 16 Level 2 20 | . . . . . . . 47 . . . . . . . 19 . . . . 22 2 64 83 . . . . . . 83 Level 3 1 | . . . . . . . . . . . . . . . 15 . . . . . . 6 . . . . . . . . Level 4 . | . . . . . . . . . . . . . . . . . . . . . . . . . . . . . . . Level 5 . | . . . . . . . . . . . . . . . . . . . . . . . . . . . . . . . High Security . | . . . . . . . . . . . . . . . . . . . . . . . . . . . . . . . Max Security . | . . . . . . . . . . . . . . . . . . . . . . . . . . . . . . . Squads Dispatched 46 | . 3 1 1 . . . 2 4 . 3 . 1 . . 8 . . . . 1 2 . . . 5 . . . . 15 Investigation 18 | . 2 1 . . . . . 4 . . . . . . 4 . . . . . 2 . . . 1 . . . . 4 Extermination 7 | . . . . . . . . . . . . . . . 2 . . . . . . . . . 1 . . . . 4 Reinforcement 19 | . 1 . 1 . . . 2 . . 3 . . . . 2 . . . . 1 . . . . 2 . . . . 7 Assault 2 | . . . . . . . . . . . . 1 . . . . . . . . . . . . 1 . . . . . Garrison . | . . . . . . . . . . . . . . . . . . . . . . . . . . . . . . . Intercept . | . . . . . . . . . . . . . . . . . . . . . . . . . . . . . . . Searches Triggered 5 | . . . . . . . . . . . . . . . 1 . . . . 1 . . . . . . . . . 3 Data Miner Redirects 6 | . . . . . . . . . . . . . . . 2 . . . . . 1 . . . 1 . . . . 2 Construction Impeded 5 | . . . . . . . 1 . . 1 . . . . 1 . . . . . . . . . . . . . . 2 Haulers Reinforced 2 | . . . . . . . . . . . . . . . . . . . . . . . . . 1 . . . . 1 Active Scanning Responses . | . . . . . . . . . . . . . . . . . . . . . . . . . . . . . . . Cargo Convoy Interrupts . | . . . . . . . . . . . . . . . . . . . . . . . . . . . . . . . Stealth | -11 -10 -10 -9 -9 -9 -8 -8 -7 -7 -7 -7 -7 -7 -6 -6 -6 -6 -6 -5 -5 -5 -5 -5 -5 -4 -4 -4 -4 -3 -3 --------- Run | Jun Mat Min Mat Min Exi Min Mat Fac Was Fac Low Low Dat Pro Fac Low Low Zio Pro Fac Ext Cet Arc Hub Fac Upp Upp Zhi Pro Res Distress Signals 23 | . 1 . 5 . . . 3 . . 1 . . . 1 . . . . . 2 3 2 1 . 2 . . . . 2 Communications Jammed . | . . . . . . . . . . . . . . . . . . . . . . . . . . . . . . . Distress Signals . | . . . . . . . . . . . . . . . . . . . . . . . . . . . . . . . Times Spotted 356 | . 17 12 30 3 4 6 35 2 5 9 4 26 . 5 16 2 1 . 1 15 25 22 15 1 15 7 18 . 4 56 Peak Tracking Total 15 | . 3 9 5 4 9 3 8 1 5 3 4 12 . 4 4 2 4 . 1 5 4 5 1 1 4 5 6 . 2 15 Tactical Retreats 31 | . . 2 1 . . . . . . 1 1 3 . 2 2 1 . . . 6 2 . . . . . 2 . . 8 Traps | -11 -10 -10 -9 -9 -9 -8 -8 -7 -7 -7 -7 -7 -7 -6 -6 -6 -6 -6 -5 -5 -5 -5 -5 -5 -4 -4 -4 -4 -3 -3 ------- Run | Jun Mat Min Mat Min Exi Min Mat Fac Was Fac Low Low Dat Pro Fac Low Low Zio Pro Fac Ext Cet Arc Hub Fac Upp Upp Zhi Pro Res Traps Triggered 7 | . . . . . . . . 1 . . . . . . 3 . . . . . . . . . . . . . . 3 Indirectly . | . . . . . . . . . . . . . . . . . . . . . . . . . . . . . . . Trap Hack Attempts . | . . . . . . . . . . . . . . . . . . . . . . . . . . . . . . . Triggered . | . . . . . . . . . . . . . . . . . . . . . . . . . . . . . . . Disarmed . | . . . . . . . . . . . . . . . . . . . . . . . . . . . . . . . Reprogrammed 6 | . . . . . . . . . . . . . . . 6 . . . . . . . . . . . . . . . Reused . | . . . . . . . . . . . . . . . . . . . . . . . . . . . . . . . Traps Extracted . | . . . . . . . . . . . . . . . . . . . . . . . . . . . . . . . Installed . | . . . . . . . . . . . . . . . . . . . . . . . . . . . . . . . Triggered . | . . . . . . . . . . . . . . . . . . . . . . . . . . . . . . . Exploded 3 | . . . . . 3 . . . . . . . . . . . . . . . . . . . . . . . . . Machines | -11 -10 -10 -9 -9 -9 -8 -8 -7 -7 -7 -7 -7 -7 -6 -6 -6 -6 -6 -5 -5 -5 -5 -5 -5 -4 -4 -4 -4 -3 -3 ---------- Run | Jun Mat Min Mat Min Exi Min Mat Fac Was Fac Low Low Dat Pro Fac Low Low Zio Pro Fac Ext Cet Arc Hub Fac Upp Upp Zhi Pro Res Machines Disabled 17 | . 4 . . . 3 1 3 . . 2 . . . . 1 . . . . 1 . . 2 . . . . . . . Max in Single Turn 2 | . 2 . . . 1 1 1 . . 2 . . . . 1 . . . . . . . 1 . . . . . . . Garrison Access 7 | . . . . . . . . 1 . 3 . . . . . . . . . 1 . . . . 2 . . . . . Machines Repaired . | . . . . . . . . . . . . . . . . . . . . . . . . . . . . . . . Machines Sabotaged . | . . . . . . . . . . . . . . . . . . . . . . . . . . . . . . . Overloaded Fab Kills . | . . . . . . . . . . . . . . . . . . . . . . . . . . . . . . . Hacking | -11 -10 -10 -9 -9 -9 -8 -8 -7 -7 -7 -7 -7 -7 -6 -6 -6 -6 -6 -5 -5 -5 -5 -5 -5 -4 -4 -4 -4 -3 -3 --------- Run | Jun Mat Min Mat Min Exi Min Mat Fac Was Fac Low Low Dat Pro Fac Low Low Zio Pro Fac Ext Cet Arc Hub Fac Upp Upp Zhi Pro Res Machines Accessed 70 | . 7 1 4 . 2 . 5 9 . 8 1 . 3 . 17 . 1 . . 2 . 1 . . 4 . . 4 . 1 Terminals 31 | . 5 . 4 . . . 2 5 . 4 . . . . 10 . . . . . . 1 . . . . . . . . Fabricators 10 | . . . . . . . . 3 . 1 . . . . 4 . . . . . . . . . 1 . . . . 1 Repair Stations 5 | . . . . . . . 1 . . . . . . . 2 . . . . . . . . . 2 . . . . . Recycling Units 3 | . 2 . . . . . . . . . . . . . 1 . . . . . . . . . . . . . . . Scanalyzers 3 | . . . . . . . 2 . . . . . . . . . . . . 1 . . . . . . . . . . Garrison Access 6 | . . . . . . . . 1 . 3 . . . . . . . . . 1 . . . . 1 . . . . . Total Hacks 209 | . 15 1 12 . 2 . 14 29 . 12 1 . 26 . 59 . 1 . . 6 . 1 . . 10 . . 16 . 4 Successful 154 | . 8 1 7 . 2 . 6 18 . 9 1 . 26 . 43 . 1 . . 4 . 1 . . 9 . . 16 . 2 Failed 55 | . 7 . 5 . . . 8 11 . 3 . . . . 16 . . . . 2 . . . . 1 . . . . 2 Catastrophic 6 | . 1 . . . . . 2 1 . 1 . . . . 1 . . . . . . . . . . . . . . . Database Lockouts . | . . . . . . . . . . . . . . . . . . . . . . . . . . . . . . . Manual 181 | . 13 . 12 . 1 . 1 21 . 7 . . . . 24 . . . . 32 26 1 . 2 25 . . . . 16 Terminals 92 | . 11 . 12 . . . 4 22 . 7 . . . . 35 . . . . . . 1 . . . . . . . . Fabricators 33 | . . . . . . . . 6 . 2 . . . . 17 . . . . . . . . . 4 . . . . 4 Repair Stations 13 | . . . . . . . 3 . . . . . . . 6 . . . . . . . . . 4 . . . . . Recycling Units 5 | . 4 . . . . . . . . . . . . . 1 . . . . . . . . . . . . . . . Scanalyzers 11 | . . . . . . . 7 . . . . . . . . . . . . 4 . . . . . . . . . . Garrison Access 8 | . . . . . . . . 1 . 3 . . . . . . . . . 2 . . . . 2 . . . . . Terminal Hacks 83 | . 6 1 5 . 2 . . 9 . 2 1 . 26 . 13 . 1 . . . . 1 . . . . . 16 . . Record 13 | . 1 . . . 1 . . . . . . . 6 . . . . . . . . . . . . . . 5 . . Part Schematic 16 | . . . . . . . . 2 . . . . 10 . . . . . . . . . . . . . . 4 . . Robot Schematic 7 | . . . . . . . . . . . . . 7 . . . . . . . . . . . . . . . . . Robot Analysis 9 | . 3 . 2 . . . . . . . . . . . 1 . . . . . . . . . . . . 3 . . Prototype ID Bank 7 | . . . . . . . . . . . . . 3 . . . . . . . . . . . . . . 4 . . Open Door 4 | . . 1 . . . . . . . . 1 . . . . . 1 . . . . 1 . . . . . . . . Branch Access Points 3 | . . . . . . . . 1 . 1 . . . . 1 . . . . . . . . . . . . . . . Terminal Index 3 | . . . . . . . . 1 . 1 . . . . 1 . . . . . . . . . . . . . . . Unreport Threat 2 | . . . 1 . . . . . . . . . . . 1 . . . . . . . . . . . . . . . Locate Traps 4 | . 1 . . . . . . 2 . . . . . . 1 . . . . . . . . . . . . . . . Reprogram Traps 2 | . . . . . . . . . . . . . . . 2 . . . . . . . . . . . . . . . Investigation Status 1 | . . . . . . . . . . . . . . . 1 . . . . . . . . . . . . . . . Recall Investigation 5 | . . . . . . . . 2 . . . . . . 3 . . . . . . . . . . . . . . . Recall Extermination 2 | . . . . . . . . . . . . . . . 2 . . . . . . . . . . . . . . . Hauler Manifests 3 | . 1 . 1 . . . . 1 . . . . . . . . . . . . . . . . . . . . . . Zone Layout 1 | . . . 1 . . . . . . . . . . . . . . . . . . . . . . . . . . . EX-Prototype ID Bank 1 | . . . . . 1 . . . . . . . . . . . . . . . . . . . . . . . . . Fabricator Hacks 21 | . . . . . . . . 3 . 2 . . . . 12 . . . . . . . . . 3 . . . . 1 Network Status 1 | . . . . . . . . . . . . . . . . . . . . . . . . . 1 . . . . . Load Schematic 14 | . . . . . . . . 3 . 1 . . . . 8 . . . . . . . . . 1 . . . . 1 Build 6 | . . . . . . . . . . 1 . . . . 4 . . . . . . . . . 1 . . . . . Repair Station Hacks 12 | . . . . . . . 2 . . . . . . . 6 . . . . . . . . . 4 . . . . . Scan Component 6 | . . . . . . . 1 . . . . . . . 3 . . . . . . . . . 2 . . . . . Repair 6 | . . . . . . . 1 . . . . . . . 3 . . . . . . . . . 2 . . . . . Recycling Unit Hacks 1 | . . . . . . . . . . . . . . . 1 . . . . . . . . . . . . . . . Retrieve Components 1 | . . . . . . . . . . . . . . . 1 . . . . . . . . . . . . . . . Scanalyzer 7 | . . . . . . . 4 . . . . . . . . . . . . 3 . . . . . . . . . . Insert Component 3 | . . . . . . . 2 . . . . . . . . . . . . 1 . . . . . . . . . . Analyze 4 | . . . . . . . 2 . . . . . . . . . . . . 2 . . . . . . . . . . Garrison Access Hacks 6 | . . . . . . . . 1 . 3 . . . . . . . . . 1 . . . . 1 . . . . . Seal Access 6 | . . . . . . . . 1 . 3 . . . . . . . . . 1 . . . . 1 . . . . . Unauthorized Hacks 24 | . 2 . 2 . . . . 5 . 2 . . . . 11 . . . . . . . . . 1 . . . . 1 Terminals 12 | . . . 2 . . . . 2 . 2 . . . . 6 . . . . . . . . . . . . . . . Track 1 | . . . . . . . . . . . . . . . 1 . . . . . . . . . . . . . . . Assimilate 6 | . . . 1 . . . . 1 . 2 . . . . 2 . . . . . . . . . . . . . . . Botnet 3 | . . . . . . . . 1 . . . . . . 2 . . . . . . . . . . . . . . . Operators 2 | . . . 1 . . . . . . . . . . . 1 . . . . . . . . . . . . . . . Fabricators 10 | . . . . . . . . 3 . . . . . . 5 . . . . . . . . . 1 . . . . 1 Prioritize 2 | . . . . . . . . . . . . . . . 1 . . . . . . . . . 1 . . . . . Recompile 8 | . . . . . . . . 3 . . . . . . 4 . . . . . . . . . . . . . . 1 Repair Stations . | . . . . . . . . . . . . . . . . . . . . . . . . . . . . . . . Recycling Units 2 | . 2 . . . . . . . . . . . . . . . . . . . . . . . . . . . . . Tunnel 2 | . 2 . . . . . . . . . . . . . . . . . . . . . . . . . . . . . Scanalyzers . | . . . . . . . . . . . . . . . . . . . . . . . . . . . . . . . Garrison Access . | . . . . . . . . . . . . . . . . . . . . . . . . . . . . . . . Data Cores Recovered . | . . . . . . . . . . . . . . . . . . . . . . . . . . . . . . . Used . | . . . . . . . . . . . . . . . . . . . . . . . . . . . . . . . Hacking Detections 39 | . 5 . 4 . . . 5 5 . 4 . . . . 12 . . . . 1 . . . . 2 . . . . 1 Full Trace Events 2 | . . . . . . . 1 1 . . . . . . . . . . . . . . . . . . . . . . Feedback Events 2 | . . . . . . . . 2 . . . . . . . . . . . . . . . . . . . . . . Hackware Fried 2 | . . . . . . . . 2 . . . . . . . . . . . . . . . . . . . . . . Feedback Blocked . | . . . . . . . . . . . . . . . . . . . . . . . . . . . . . . . Robot Schematics Acquired 7 | . . . . . . . . . . . . . 7 . . . . . . . . . . . . . . . . . Robots Built . | . . . . . . . . . . . . . . . . . . . . . . . . . . . . . . . Authchips . | . . . . . . . . . . . . . . . . . . . . . . . . . . . . . . . Time . | . . . . . . . . . . . . . . . . . . . . . . . . . . . . . . . Total Robot Build Rating . | . . . . . . . . . . . . . . . . . . . . . . . . . . . . . . . Part Schematics Acquired 57 | . . . . . . . . 2 . . . . 10 . . . . . . 17 16 . . . 8 . . 4 . . Parts Built 10 | . . . . . . . . . . 2 . . . . 6 . . . . . . . . . 2 . . . . . Authchips 6 | . . . . . . . . . . 1 . . . . 4 . . . . . . . . . 1 . . . . . Time 456 | . . . . . . . . . . 31 . . . . 319 . . . . . . . . . 106 . . . . . Total Part Build Rating 57 | . . . . . . . . . . 10 . . . . 35 . . . . . . . . . 12 . . . . . Parts Repaired 6 | . . . . . . . 1 . . . . . . . 3 . . . . . . . . . 2 . . . . . Time 308 | . . . . . . . 136 . . . . . . . 126 . . . . . . . . . 46 . . . . . Parts Recycled . | . . . . . . . . . . . . . . . . . . . . . . . . . . . . . . . Recycled Matter . | . . . . . . . . . . . . . . . . . . . . . . . . . . . . . . . Retrieved Matter . | . . . . . . . . . . . . . . . . . . . . . . . . . . . . . . . Retrieved Components 7 | . . . . . . . . . . . . . . . 7 . . . . . . . . . . . . . . . Parts Scanalyzed 2 | . . . . . . . 1 . . . . . . . . . . . . 1 . . . . . . . . . . Part Schematics Acquired 1 | . . . . . . . . . . . . . . . . . . . . 1 . . . . . . . . . . Parts Damaged . | . . . . . . . . . . . . . . . . . . . . . . . . . . . . . . . Bothacking | -11 -10 -10 -9 -9 -9 -8 -8 -7 -7 -7 -7 -7 -7 -6 -6 -6 -6 -6 -5 -5 -5 -5 -5 -5 -4 -4 -4 -4 -3 -3 ------------ Run | Jun Mat Min Mat Min Exi Min Mat Fac Was Fac Low Low Dat Pro Fac Low Low Zio Pro Fac Ext Cet Arc Hub Fac Upp Upp Zhi Pro Res Used RIF Installer . | . . . . . . . . . . . . . . . . . . . . . . . . . . . . . . . Robots Hacked . | . . . . . . . . . . . . . . . . . . . . . . . . . . . . . . . Non-combat . | . . . . . . . . . . . . . . . . . . . . . . . . . . . . . . . Combat . | . . . . . . . . . . . . . . . . . . . . . . . . . . . . . . . Robot Hacks Applied . | . . . . . . . . . . . . . . . . . . . . . . . . . . . . . . . Relay Couplers Released 3 | . . . . . . . . . . . . . . . . . . . . . . . . . 3 . . . . . Programmers 3 | . . . . . . . . . . . . . . . . . . . . . . . . . 3 . . . . . Fabnet Peak Effective % . | . . . . . . . . . . . . . . . . . . . . . . . . . . . . . . . Robots Rewired 10 | . . . . . . . . . . . . . . . . . . . . . 10 . . . . . . . . . Allies Hacked 5 | . . . . . . . . . . . . . . . . . . . . . . 1 . . . . . . . 4 Hacks Repelled . | . . . . . . . . . . . . . . . . . . . . . . . . . . . . . . . Allies | -11 -10 -10 -9 -9 -9 -8 -8 -7 -7 -7 -7 -7 -7 -6 -6 -6 -6 -6 -5 -5 -5 -5 -5 -5 -4 -4 -4 -4 -3 -3 -------- Run | Jun Mat Min Mat Min Exi Min Mat Fac Was Fac Low Low Dat Pro Fac Low Low Zio Pro Fac Ext Cet Arc Hub Fac Upp Upp Zhi Pro Res Total Allies 62 | . . 3 1 . . . . 1 . 1 . . . 1 . . . 4 . 6 21 4 . . 13 . . . . 7 Largest Group 13 | . . 3 1 . . . . 1 . 1 . . . 1 . . . 4 4 3 13 13 3 . 5 2 . . . 4 Highest-Rated Group 778 | . . 40 10 . . . . 10 . 10 . . . 96 . . . 156 156 153 524 778 182 . 190 100 . . . 233 Highest-Rated Ally 159 | . . 16 10 . . . . 10 . 10 . . . 96 . . . 41 41 51 159 159 89 . 50 50 . . . 103 Zionite Dispatches 11 | . . . . . . . . . . . . . . . . . . . . 2 2 . . . 4 . . . . 3 Heavy 1 | . . . . . . . . . . . . . . . . . . . . . . . . . . . . . . 1 Fire 1 | . . . . . . . . . . . . . . . . . . . . . . . . . . . . . . 1 Hacker 2 | . . . . . . . . . . . . . . . . . . . . 2 . . . . . . . . . . Demo 2 | . . . . . . . . . . . . . . . . . . . . . . . . . 2 . . . . . Kinetic Resupply 1 | . . . . . . . . . . . . . . . . . . . . . . . . . 1 . . . . . Melee Resupply 1 | . . . . . . . . . . . . . . . . . . . . . . . . . 1 . . . . . Defense Resupply 1 | . . . . . . . . . . . . . . . . . . . . . 1 . . . . . . . . . Hacking Resupply 1 | . . . . . . . . . . . . . . . . . . . . . 1 . . . . . . . . . Hover Resupply 1 | . . . . . . . . . . . . . . . . . . . . . . . . . . . . . . 1 Total Orders 63 | . . 1 . . . . . . . . . . . . . . . . . 4 53 . . . 3 . . . . 2 STAY 6 | . . 1 . . . . . . . . . . . . . . . . . . 3 . . . 1 . . . . 1 FOLLOW 3 | . . . . . . . . . . . . . . . . . . . . . 3 . . . . . . . . . DROP 5 | . . . . . . . . . . . . . . . . . . . . . 2 . . . 2 . . . . 1 EXPLORE 8 | . . . . . . . . . . . . . . . . . . . . . 8 . . . . . . . . . RETURN 41 | . . . . . . . . . . . . . . . . . . . . 4 37 . . . . . . . . . Ally Attacks 573 | . . 30 . . . . . . . . . . . 31 . . . . 10 39 251 141 7 . 31 20 . . . 13 Total Damage 15102 | . . 209 . . . . . . . . . . . 1075 . . . . 409 700 5103 3883 159 . 935 1864 . . . 765 Kills 95 | . . 6 . . . . . . . . . . . 12 . . . . 2 10 22 25 . . 7 9 . . . 2 Allies Corrupted 3 | . . 1 . . . . . . . . . . . . . . . . . . . 1 . . . . . . . 1 Allies Melted . | . . . . . . . . . . . . . . . . . . . . . . . . . . . . . . . Intel | -11 -10 -10 -9 -9 -9 -8 -8 -7 -7 -7 -7 -7 -7 -6 -6 -6 -6 -6 -5 -5 -5 -5 -5 -5 -4 -4 -4 -4 -3 -3 ------- Run | Jun Mat Min Mat Min Exi Min Mat Fac Was Fac Low Low Dat Pro Fac Low Low Zio Pro Fac Ext Cet Arc Hub Fac Upp Upp Zhi Pro Res Robot Analysis Total 9 | . 3 . 2 . . . . . . . . . . . 1 . . . . . . . . . . . . 3 . . Derelict Logs Recovered 16 | . . 1 . 1 . . . . . . 2 1 . 2 . 1 2 1 1 . . . . . . 3 1 . . . Drone Launches 49 | . . . . . . . . . . . . . . . . . . . . 5 43 1 . . . . . . . . Drone Recoveries 47 | . . . . . . . . . . . . . . . . . . . . 5 42 . . . . . . . . . Zionite Intel Received 17 | . . . . . . . . . . . . . . . . . . . . 7 5 . . . 3 . . . . 2 Branch Access 1 | . . . . . . . . . . . . . . . . . . . . . . . . . 1 . . . . . Emergency Access 1 | . . . . . . . . . . . . . . . . . . . . 1 . . . . . . . . . . Guard Positions 1 | . . . . . . . . . . . . . . . . . . . . 1 . . . . . . . . . . Component Stockpiles 1 | . . . . . . . . . . . . . . . . . . . . 1 . . . . . . . . . . Prototype Stockpiles 2 | . . . . . . . . . . . . . . . . . . . . . 1 . . . . . . . . 1 Component Schematics 2 | . . . . . . . . . . . . . . . . . . . . 1 1 . . . . . . . . . Prototype Schematics 1 | . . . . . . . . . . . . . . . . . . . . . . . . . 1 . . . . . Unaware Analyses 4 | . . . . . . . . . . . . . . . . . . . . 2 1 . . . 1 . . . . . Trap Installations 1 | . . . . . . . . . . . . . . . . . . . . . 1 . . . . . . . . . Active Terminals 1 | . . . . . . . . . . . . . . . . . . . . . . . . . . . . . . 1 Depthwide Sectors/0 1 | . . . . . . . . . . . . . . . . . . . . 1 . . . . . . . . . . Depthwide Sectors/-1 1 | . . . . . . . . . . . . . . . . . . . . . 1 . . . . . . . . . Exploration | -11 -10 -10 -9 -9 -9 -8 -8 -7 -7 -7 -7 -7 -7 -6 -6 -6 -6 -6 -5 -5 -5 -5 -5 -5 -4 -4 -4 -4 -3 -3 ------------- Run | Jun Mat Min Mat Min Exi Min Mat Fac Was Fac Low Low Dat Pro Fac Low Low Zio Pro Fac Ext Cet Arc Hub Fac Upp Upp Zhi Pro Res Turns Passed 21082 | 78 1115 500 1914 1385 1592 385 1856 378 45 438 177 146 27 394 1378 449 554 805 301 1042 1143 561 415 73 1168 593 585 254 222 1109 Spaces Moved 18301 | 43 446 191 683 570 684 164 707 870 134 952 496 306 77 641 2053 479 749 953 326 1112 808 266 191 74 1166 723 718 285 263 1171 Core 20 | 3 . . . . . . 7 . . . . . . . . . . . . . . . . . . . . . . 10 Treads 3318 | 40 446 191 683 570 684 164 540 . . . . . . . . . . . . . . . . . . . . . . . Legs . | . . . . . . . . . . . . . . . . . . . . . . . . . . . . . . . Wheels 160 | . . . . . . . 160 . . . . . . . . . . . . . . . . . . . . . . . Hover 9907 | . . . . . . . . . . . . . . . 633 479 749 953 326 1112 808 266 191 74 1166 723 718 285 263 1161 Flight 4896 | . . . . . . . . 870 134 952 496 306 77 641 1420 . . . . . . . . . . . . . . . Fastest Speed 29 | 50 160 240 240 240 160 165 130 32 32 32 32 32 34 34 29 71 71 71 71 71 71 71 71 71 63 68 68 68 68 50 Average Speed 87 | 152 219 240 240 240 181 216 202 32 32 32 32 32 34 34 42 81 71 71 71 71 71 81 79 71 68 68 68 68 68 59 Slowest Speed 850 | 160 240 240 240 240 240 245 850 32 32 102 32 34 34 34 103 150 71 71 71 71 141 141 141 71 71 144 68 68 68 150 Overloaded Moves . | . . . . . . . . . . . . . . . . . . . . . . . . . . . . . . . Propulsion Burnouts . | . . . . . . . . . . . . . . . . . . . . . . . . . . . . . . . Robots Hopped 4 | . . . . . . . . . 2 1 . . . . 1 . . . . . . . . . . . . . . . Cave-ins Triggered 1 | . . . . . . . . . . . 1 . . . . . . . . . . . . . . . . . . . Teleports 1 | . . . . . . . . . . . . . . . . . . . . . . . . . . . . . . 1 Exploration Rate (%) 58 | 5 77 49 65 95 71 41 60 17 78 30 73 51 72 68 38 67 92 87 55 28 75 72 80 15 31 87 87 60 38 39 Regions Visited 30 Branch Regions 20 Pre-discovered Areas 31 | . 2 1 . . 1 . . . . . . . 1 . . 1 1 2 1 10 5 . . . . 2 1 3 . . Known Exits Taken 17 | . . . . . . . . . . 1 1 1 1 1 1 1 1 1 1 1 1 1 1 1 1 1 . . . . Unknown Exits Taken 11 | 1 1 1 1 1 1 1 1 . . . . . . . . . . . . . . . . . . . 1 1 1 . Scrap Searched 29 | . . . . 3 . . . . . . 1 3 . 4 . 2 3 2 2 . . . . . . 2 5 . 2 . Spaces Dug 294 | . . . 6 . 8 15 10 10 . 19 3 24 . 19 58 2 5 1 2 33 8 . . 4 21 13 6 . 4 23 Terrain Destroyed 823 | . 33 . 11 19 8 109 90 10 . 43 3 85 . 33 96 2 5 1 2 37 15 1 8 5 37 17 71 . 13 69 Melee 179 | . . . . . . . . 10 . 19 3 1 . 1 41 2 5 1 2 28 8 . . 1 18 13 5 . 4 17 Projectile 71 | . . . . . . . . . . . . . . . . . . . . 9 7 1 8 4 11 4 2 . 9 16 AOE 573 | . 33 . 11 19 8 109 90 . . 24 . 84 . 32 55 . . . . . . . . . 8 . 64 . . 36 Terrain Rammed . | . . . . . . . . . . . . . . . . . . . . . . . . . . . . . . . Walls Destroyed . | . . . . . . . . . . . . . . . . . . . . . . . . . . . . . . . Machines Disabled . | . . . . . . . . . . . . . . . . . . . . . . . . . . . . . . . Actions | -11 -10 -10 -9 -9 -9 -8 -8 -7 -7 -7 -7 -7 -7 -6 -6 -6 -6 -6 -5 -5 -5 -5 -5 -5 -4 -4 -4 -4 -3 -3 --------- Run | Jun Mat Min Mat Min Exi Min Mat Fac Was Fac Low Low Dat Pro Fac Low Low Zio Pro Fac Ext Cet Arc Hub Fac Upp Upp Zhi Pro Res Total 22005 | 51 512 219 833 581 911 179 1014 947 132 1045 508 339 77 813 2454 531 757 1080 388 1274 1328 471 396 88 1442 792 786 333 282 1442 Wait 2135 | . 4 16 27 2 54 . 174 18 . 62 . 9 . 165 281 40 . 118 58 84 433 108 141 7 151 41 33 14 1 94 Move 18265 | 42 445 190 682 569 683 163 706 870 130 949 495 305 76 640 2050 478 748 952 325 1111 807 265 190 73 1165 722 717 284 262 1171 Hop 3 | . . . . . . . . . 1 1 . . . . 1 . . . . . . . . . . . . . . . Pick Up 141 | 2 10 5 22 2 9 . 12 7 . 3 1 2 . 1 17 2 . 3 . 7 4 6 3 1 5 1 . 6 . 10 Fast Attach 86 | 6 1 . 1 . 1 . 10 5 1 . 1 1 . . 7 3 . 1 . 3 4 4 2 . 13 3 3 7 . 9 Attach 79 | . . . 7 . 15 1 4 4 . 2 2 3 . 2 14 . . . . 3 . 1 3 . 6 1 1 3 . 7 Detach 42 | . . . 1 . 2 . 4 3 . 1 2 2 . 2 6 1 . . . 2 1 3 3 . 6 . 1 2 . . Swap 131 | . 9 . 10 1 3 . 8 4 . 4 1 2 . . 8 3 . 2 1 4 2 5 7 1 13 4 12 2 . 25 Drop 129 | . 3 . 15 1 12 . . 15 . 1 2 3 1 . 9 2 . 3 1 9 7 5 4 1 14 . 2 8 . 11 Fire 529 | 1 40 8 68 3 53 13 94 6 . . . 11 . 2 5 . . . . 9 9 74 19 4 24 7 9 . 11 59 Melee 327 | . . . . . . . . 15 . 22 4 1 . 1 56 2 9 1 3 42 20 . 24 1 45 13 8 7 8 45 Ram 6 | . . . . . . . 1 . . . . . . . . . . . . . . . . . . . . . . 5 Kick . | . . . . . . . . . . . . . . . . . . . . . . . . . . . . . . . Crush 85 | . . . . 3 79 2 1 . . . . . . . . . . . . . . . . . . . . . . . Escape Stasis 6 | . . . . . . . . . . . . . . . . . . . . . . . . . . . . . . 6 Rewire 41 | . . . . . . . . . . . . . . . . . . . . . 41 . . . . . . . . . Trap . | . . . . . . . . . . . . . . . . . . . . . . . . . . . . . . . Miscellaneous . | . . . . . . . . . . . . . . . . . . . . . . . . . . . . . . . Route ------- -11/Junkyard -10/Materials (discovered 2 exits: *Mat / *Min) -10/Mines -9/Materials (discovered 5 exits: *Mat x2 / [*Min] / [*Sto x2]) -9/Mines (discovered 3 exits: *Mat x2 / *Exi) -9/Exiles -8/Mines -8/Materials (discovered 2 exits: *Fac x2) -7/Factory (discovered 3 exits: *Fac / Low x2) -7/Waste -7/Factory (discovered 2 exits: *Low x2) -7/Lower Caves -7/Lower Caves (discovered 2 exits: *Fac / *Dat) -7/Data Miner -6/Proximity Caves -6/Factory (discovered 4 exits: *Fac x2 / *Low x2) -6/Lower Caves -6/Lower Caves (discovered 2 exits: *Fac / *Zio) -6/Zion -5/Proximity Caves -5/Factory (discovered 2 exits: *Upp / *Ext) -5/Extension (discovered 2 exits: *Fac / *Cet) -5/Cetus (discovered 2 exits: *Fac / *Arc) -5/Archives (discovered 2 exits: *Hub x2) -5/Hub_04(d) -4/Factory (discovered 3 exits: *Upp x2 / Arm) -4/Upper Caves -4/Upper Caves (discovered 2 exits: *Res / *Zhi) -4/Zhirov -3/Proximity Caves -3/Research (discovered 2 exits: *Res / Qua) History --------- Turn | Location | Event 19 | -11/Junkyard | Discovered new exit (range 15) 79 | -11/Junkyard | Entered Materials 317 | -10/Materials | Build established: Mutant 367 | -10/Materials | Discovered new exit (range 8) 845 | -10/Materials | Discovered new exit (range 6) 1194 | -10/Materials | Entered Mines 1200 | -10/Mines | Met a Derelict shopkeep closing up shop 1322 | -10/Mines | Assisted by bots powering up and referring to "LRC-V3" 1418 | -10/Mines | Learned location of Zion (-6) 1524 | -10/Mines | Received a Rocket Launcher from a helpful Derelict 1535 | -10/Mines | Discovered new exit (range 7) 1569 | -10/Mines | Assembled infested the area 1694 | -10/Mines | Entered Materials 1694 | -9/Materials | Evolved 2 slots: Propulsion x1, Utility x1 2063 | -9/Materials | Discovered new exit (range 15) 2145 | -9/Materials | Discovered new exit (range 15) 2295 | -9/Materials | Discovered new exit (range 4) 2871 | -9/Materials | Discovered new exit (range 8) 3072 | -9/Materials | Discovered new exit (range 15) 3608 | -9/Materials | Entered Mines 3636 | -9/Mines | Met a Derelict bent on vengeance 3687 | -9/Mines | Discovered new exit (range 9) 3740 | -9/Mines | Found a damaged Exp. Sensor Array with a note attached 3744 | -9/Mines | Found Prototype Device 3817 | -9/Mines | A weapon hastily lodged in a ceiling crevice suddenly fell to the ground 4385 | -9/Mines | Deemed a non-threat by the Exiles lab entrance 4733 | -9/Mines | Discovered new exit (range 8) 4736 | -9/Mines | Met a Derelict testing a Signal Generator 4752 | -9/Mines | Found Signal Generator 4984 | -9/Mines | Discovered new exit (range 5) 4993 | -9/Mines | Entered Exiles 5052 | -9/Exiles | Met 8R-AWN 5090 | -9/Exiles | Met EX-HEX 5212 | -9/Exiles | Met EX-DEC 5340 | -9/Exiles | Discovered new exit (range 11) 5754 | -9/Exiles | Met EX-BIN 5773 | -9/Exiles | Aligned with FarCom system 5775 | -9/Exiles | Given EX-Vault access code 5808 | -9/Exiles | Build established: Scavenger-Mutant 5815 | -9/Exiles | Opened EX-Vault 5852 | -9/Exiles | Warned to stay clear of 0b10 Research branches 6210 | -9/Exiles | Attacked by the Exiles 6305 | -9/Exiles | Core integrity fell below 50% 6362 | -9/Exiles | Lost 3 parts (1p1n1u) 6543 | -9/Exiles | Lost 13 parts (1p4n3u5w) 6547 | -9/Exiles | Core integrity fell below 20% 6585 | -9/Exiles | Entered Mines 6602 | -8/Mines | Lost 3 parts (2n1u) 6704 | -8/Mines | Build established: Mutant 6940 | -8/Mines | Discovered new exit (range 3) 6970 | -8/Mines | Entered Materials 6970 | -8/Materials | Evolved 2 slots: Utility x2 7410 | -8/Materials | Destroyed 7 combat bots 7496 | -8/Materials | Core integrity fell below 50% 7712 | -8/Materials | Discovered new exit (range 8) 8192 | -8/Materials | Build established: Scavenger-Mutant 8196 | -8/Materials | Identified Exp. Sensor Array 8327 | -8/Materials | Discovered new exit (range 12) 8735 | -8/Materials | Repaired Broken Exp. Sensor Array 8826 | -8/Materials | Entered Factory 8826 | -7/Factory | Evolved 2 slots: Utility x2 8895 | -7/Factory | Discovered new exit (range 8) 8898 | -7/Factory | Identified exit to Factory 8903 | -7/Factory | Identified exit to Lower Caves 8954 | -7/Factory | System Shield fried by hacking feedback 8954 | -7/Factory | Hacking Suite fried by hacking feedback 9169 | -7/Factory | Build established: Hacker-Scout 9204 | -7/Factory | Sucked down chute 9204 | -7/Factory | Entered Waste 9211 | -7/Waste | Spotted C-40 Crusher 9212 | -7/Waste | Spotted C-40 Crusher 9219 | -7/Waste | EMP discharged 9231 | -7/Waste | Spotted C-40 Crusher 9236 | -7/Waste | Spotted C-40 Crusher 9242 | -7/Waste | Spotted C-40 Crusher 9246 | -7/Waste | Discovered new exit (range 10) 9248 | -7/Waste | Identified exit to Factory 9249 | -7/Waste | Entered Factory 9332 | -7/Factory | Fabricated Adv. Signal Interpreter? 9687 | -7/Factory | Entered Lower Caves 9709 | -7/Lower Caves | Crushed by falling debris 9709 | -7/Lower Caves | System corruption reached 10% 9772 | -7/Lower Caves | Learned Factory stockpile data 9807 | -7/Lower Caves | Discovered new exit (range 7) 9812 | -7/Lower Caves | Encountered a Warlord checkpoint 9814 | -7/Lower Caves | Learned 4 Factory zone layouts 9854 | -7/Lower Caves | Identified exit to Lower Caves 9864 | -7/Lower Caves | Entered another Lower Caves area 9867 | -7/Lower Caves | Discovered exit to Factory (range 6) 9877 | -7/Lower Caves | Attracted the attention of an 0b10 outpost 9921 | -7/Lower Caves | Spotted B-75 Beast 10000 | -7/Lower Caves | Discovered new exit (range 15) 10005 | -7/Lower Caves | Learned Factory emergency access door positions 10010 | -7/Lower Caves | Identified exit to Data Miner 10010 | -7/Lower Caves | Entered Data Miner 10010 | -7/Data Miner | Discovered new exit (range 6) 10014 | -7/Data Miner | Destroyed 11 combat bots 10016 | -7/Data Miner | Met Data Miner 10024 | -7/Data Miner | Learned location of Section 7 (-3) 10024 | -7/Data Miner | Acquired the access code to Warlord's prototype stash 10029 | -7/Data Miner | Received God Mode back door access code from Data Miner 10036 | -7/Data Miner | Identified exit to Proximity Caves 10037 | -7/Data Miner | Entered Proximity Caves 10039 | -6/Proximity Caves | Spotter reported a threat 10039 | -6/Proximity Caves | Spotter reported a threat 10060 | -6/Proximity Caves | Escorted by Enhanced Grunt 10161 | -6/Proximity Caves | Spotter reported a threat 10175 | -6/Proximity Caves | Learned location of 1 exit from Factory 10176 | -6/Proximity Caves | Learned 8 Factory zone layouts 10179 | -6/Proximity Caves | Spotted B-75 Beast 10266 | -6/Proximity Caves | Build established: Hacker-Mutant 10425 | -6/Proximity Caves | Discovered exit to Factory (range 13) 10431 | -6/Proximity Caves | Entered Factory 10431 | -6/Factory | Evolved 2 slots: Propulsion x1, Utility x1 10432 | -6/Factory | Identified exit to Lower Caves 10433 | -6/Factory | Identified exit to Factory 10561 | -6/Factory | Fabricated Biomechanical Wings (x1) 10781 | -6/Factory | Search patrols dispatched 10783 | -6/Factory | Incoming investigation squad redirected 10795 | -6/Factory | Incoming investigation squad redirected 10828 | -6/Factory | Build established: Hacker-Scout 11117 | -6/Factory | Fabricated Cmb. Gravmag System (x2) 11174 | -6/Factory | Fabricated Cmb. Gravmag System (x2) 11271 | -6/Factory | Fabricated Combat Drone Bay (x1) 11379 | -6/Factory | Repaired Imp. Light Armor Plating 11401 | -6/Factory | Repaired Hvy. Missile Launcher? 11442 | -6/Factory | Repaired Great Axe 11809 | -6/Factory | Entered Lower Caves 11809 | -6/Lower Caves | Spotted B-75 Beast 11817 | -6/Lower Caves | Learned location of Extension (-5) 12173 | -6/Lower Caves | Encountered a Warlord checkpoint 12230 | -6/Lower Caves | Discovered new exit (range 7) 12236 | -6/Lower Caves | Identified exit to Lower Caves 12258 | -6/Lower Caves | Entered another Lower Caves area 12292 | -6/Lower Caves | Discovered exit to Factory (range 12) 12428 | -6/Lower Caves | Identified exit to Zion 12812 | -6/Lower Caves | Entered Zion 12853 | -6/Zion | Discovered new exit (range 16) 12930 | -6/Zion | System corruption cleaned by Quarantine Array 12968 | -6/Zion | Acquired unknown access codes intercepted by a Zionite 13032 | -6/Zion | Learned 4 Factory zone layouts 13145 | -6/Zion | Found CR-A16's Pointy Stick 13326 | -6/Zion | Imprinted 13328 | -6/Zion | Declared Zion's savior 13438 | -6/Zion | Found Prototype Device 13439 | -6/Zion | Identified Mobile Refinery Mk. CCLXVII 13497 | -6/Zion | Identified exit to Proximity Caves 13617 | -6/Zion | Entered Proximity Caves 13617 | -5/Proximity Caves | Accompanied by 4 allies 13802 | -5/Proximity Caves | Spotter reported a threat 13855 | -5/Proximity Caves | Spotter reported a threat 13899 | -5/Proximity Caves | Discovered exit to Factory (range 7) 13918 | -5/Proximity Caves | Entered Factory 13918 | -5/Factory | Evolved 2 slots: Utility x2 13919 | -5/Factory | Identified exit to Upper Caves 14009 | -5/Factory | Retrieved Zion intel report: Emergency Access 14131 | -5/Factory | Retrieved Zion intel report: Guard Positions 14326 | -5/Factory | Zion Hacker squad teleported in 14393 | -5/Factory | Discovered new exit (range 15) 14442 | -5/Factory | Retrieved Zion intel report: Component Stockpiles 14503 | -5/Factory | Retrieved Zion intel report: Component Schematics 14518 | -5/Factory | Search patrols dispatched 14729 | -5/Factory | Retrieved Zion intel report: Depthwide Sectors/0 14743 | -5/Factory | Retrieved Zion intel report: Unaware Analyses 14767 | -5/Factory | Retrieved Zion intel report: Unaware Analyses 14768 | -5/Factory | Zion Hacker squad teleported in 14958 | -5/Factory | Identified exit to Extension 14960 | -5/Factory | Entered Extension 15028 | -5/Extension | Rescued a captive Derelict 15035 | -5/Extension | Rescued a captive Derelict 15203 | -5/Extension | Rescued a captive Derelict 15211 | -5/Extension | Retrieved Zion intel report: Depthwide Sectors/-1 15220 | -5/Extension | Rescued a captive Derelict 15221 | -5/Extension | Rescued a captive Derelict 15531 | -5/Extension | Spotted B-75 Beast 15531 | -5/Extension | Spotted B-75 Beast 15606 | -5/Extension | Allies destroyed B-75 Beast 15608 | -5/Extension | Allies destroyed B-75 Beast 15664 | -5/Extension | Retrieved Zion intel report: Component Schematics 15665 | -5/Extension | Zion Hacking Resupply teleported in 15682 | -5/Extension | Zion Defense Resupply teleported in 15693 | -5/Extension | Incoming investigation squad redirected 15766 | -5/Extension | Retrieved Zion intel report: Trap Installations 15769 | -5/Extension | Rescued a captive Derelict 15845 | -5/Extension | Rescued a captive Derelict 15855 | -5/Extension | Retrieved Zion intel report: Unaware Analyses 15859 | -5/Extension | Retrieved Zion intel report: Prototype Stockpiles 16001 | -5/Extension | Rescued A7 16019 | -5/Extension | Rescued a captive Derelict 16056 | -5/Extension | Discovered new exit (range 10) 16063 | -5/Extension | Discovered new exit (range 6) 16094 | -5/Extension | Identified exit to Cetus 16097 | -5/Extension | Identified exit to Factory 16103 | -5/Extension | Entered Cetus 16103 | -5/Cetus | Accompanied by 11 allies (A7) 16108 | -5/Cetus | Acquired a Cetus Manufacturing Module code from A7 16126 | -5/Cetus | Spotted Cetus Guard 16126 | -5/Cetus | Spotted Cetus Guard 16126 | -5/Cetus | Spotted Cetus Guard 16128 | -5/Cetus | Spotted Cetus Guard 16128 | -5/Cetus | Allies destroyed Cetus Guard 16135 | -5/Cetus | Destroyed Cetus Guard 16138 | -5/Cetus | Allies destroyed Cetus Guard 16140 | -5/Cetus | Allies destroyed Cetus Guard 16188 | -5/Cetus | Started Cetus Manufacturing Module 16213 | -5/Cetus | Manufactured an Enhanced Grunt 16215 | -5/Cetus | Escorted A7 to Cetus Mainframe 16238 | -5/Cetus | Manufactured an Enhanced Grunt 16263 | -5/Cetus | Manufactured an Enhanced Grunt 16280 | -5/Cetus | Discovered new exit (range 16) 16288 | -5/Cetus | Manufactured an Enhanced Grunt 16302 | -5/Cetus | Cetus Manufacturing Module disabled 16305 | -5/Cetus | Spotted Cetus Guard 16305 | -5/Cetus | Spotted Cetus Guard 16308 | -5/Cetus | Spotted Cetus Guard 16309 | -5/Cetus | Spotted Cetus Guard 16311 | -5/Cetus | Allies destroyed Cetus Guard 16320 | -5/Cetus | Allies destroyed Cetus Guard 16323 | -5/Cetus | Allies destroyed Cetus Guard 16324 | -5/Cetus | Allies destroyed Cetus Guard 16331 | -5/Cetus | Discovered exit to Factory (range 15) 16338 | -5/Cetus | Scared off Revision 17 16608 | -5/Cetus | Build established: Hacker-Mutant 16610 | -5/Cetus | Destroyed A7 16613 | -5/Cetus | Extracted ID and sensor layout for unrecognized location from A7's data core 16616 | -5/Cetus | Found Corrupted Prototype Protection 16616 | -5/Cetus | Identified Med. Regenerative Plating 16652 | -5/Cetus | Identified exit to Archives 16664 | -5/Cetus | Entered Archives 16664 | -5/Archives | Accompanied by 3 allies 16864 | -5/Archives | Discovered new exit (range 16) 16880 | -5/Archives | Discovered new exit (range 16) 16935 | -5/Archives | Identified exit to Hub_04(d) 17079 | -5/Archives | Entered Hub_04(d) 17109 | -5/Hub_04(d) | Discovered exit to Factory (range 13) 17152 | -5/Hub_04(d) | Entered Factory 17152 | -4/Factory | Evolved 2 slots: Propulsion x1, Utility x1 17157 | -4/Factory | Zion Demo squad teleported in 17268 | -4/Factory | Retrieved Zion intel report: Branch Access 17268 | -4/Factory | Identified exit to Upper Caves 17268 | -4/Factory | Identified exit to Armory 17311 | -4/Factory | Fabricated Cmb. Gravmag System (x2) 17506 | -4/Factory | Repaired Cmb. Gravmag System 17508 | -4/Factory | Build established: Hacker-Scout 17732 | -4/Factory | Retrieved Zion intel report: Unaware Analyses 17948 | -4/Factory | Repaired Cmb. Gravmag System 18014 | -4/Factory | Retrieved Zion intel report: Prototype Schematics 18015 | -4/Factory | Zion Melee Resupply teleported in 18061 | -4/Factory | Incoming assault squad redirected 18223 | -4/Factory | Found Quantum Capacitor 18287 | -4/Factory | Zion Demo squad teleported in 18292 | -4/Factory | Zion Kinetic Resupply teleported in 18320 | -4/Factory | Entered Upper Caves 18320 | -4/Upper Caves | Accompanied by 2 allies 18335 | -4/Upper Caves | Encountered a Warlord checkpoint 18522 | -4/Upper Caves | Build established: Wizard-Scout 18645 | -4/Upper Caves | Spotted B-86 Titan 18886 | -4/Upper Caves | Discovered new exit (range 9) 18892 | -4/Upper Caves | Identified exit to Upper Caves 18913 | -4/Upper Caves | Entered another Upper Caves area 19042 | -4/Upper Caves | Discovered new exit (range 16) 19239 | -4/Upper Caves | Spotted B-86 Titan 19439 | -4/Upper Caves | Build established: Hacker-Scout 19485 | -4/Upper Caves | Discovered new exit (range 15) 19497 | -4/Upper Caves | Attracted the attention of an 0b10 checkpoint 19498 | -4/Upper Caves | Entered Zhirov 19498 | -4/Zhirov | Discovered new exit (range 3) 19511 | -4/Zhirov | Met Zhirov 19527 | -4/Zhirov | Learned location of Quarantine (-3) 19527 | -4/Zhirov | Learned location of Command (-1) 19533 | -4/Zhirov | Zhirov requested help retrieving the SGEMP Prototype 19547 | -4/Zhirov | Found Alien Artifact 19547 | -4/Zhirov | Identified Integrated Reactor 19547 | -4/Zhirov | Installed Integrated Reactor, increased core energy generation (+10) 19569 | -4/Zhirov | Revealed the true nature of CR-A16's Pointy Stick 19659 | -4/Zhirov | Found Alien Artifact 19752 | -4/Zhirov | Entered Proximity Caves 19758 | -3/Proximity Caves | Spotter reported a threat 19788 | -3/Proximity Caves | Spotter reported a threat 19790 | -3/Proximity Caves | Build established: Hacker-Mutant 19811 | -3/Proximity Caves | Spotter reported a threat 19844 | -3/Proximity Caves | Spotter reported a threat 19932 | -3/Proximity Caves | Discovered new exit (range 13) 19974 | -3/Proximity Caves | Entered Research 19974 | -3/Research | Evolved 2 slots: Power x1, Propulsion x1 19975 | -3/Research | Identified exit to Quarantine 20026 | -3/Research | Retrieved Zion intel report: Active Terminals 20172 | -3/Research | Retrieved Zion intel report: Prototype Stockpiles 20173 | -3/Research | Zion Hover Resupply teleported in 20265 | -3/Research | Search patrols dispatched 20286 | -3/Research | Zion Heavy squad teleported in 20357 | -3/Research | Found Prototype Protection 20524 | -3/Research | Search patrols dispatched 20749 | -3/Research | Discovered new exit (range 15) 20774 | -3/Research | Search patrols dispatched 20780 | -3/Research | Identified exit to Research 20840 | -3/Research | Identified Transdimensional Reconstructor 20840 | -3/Research | Warped through subspace 20841 | -3/Research | Identified Zio. Weapon Casing 21010 | -3/Research | Incoming investigation squad redirected 21025 | -3/Research | Lost 4 parts (2n1u1w) 21029 | -3/Research | Incoming investigation squad redirected 21034 | -3/Research | Zion Fire squad teleported in 21038 | -3/Research | P-80 Master assimilated allied QZ-RU6(i) 21043 | -3/Research | P-80 Master assimilated allied 6Z-E0I(i) 21050 | -3/Research | System corruption reached 10% 21063 | -3/Research | Core integrity fell below 50% 21081 | -3/Research | Core integrity fell below 20% 21083 | -3/Research | Destroyed by S-43 Plague with Heavy Machine Gun Last Messages --------------- 21072_ Slug penetrates Wall. 21072_ ALERT: Suspicious intruders detected, dispatching Specialist reinforcements to area. 21074_ P-80 Master resets P-80 Master, system corruption cleaned. 21074_ Dropped Cld. Gravmag System. 21075_ Penetrated by Slug. 21075_ Adv. Signal Interpreter destroyed. 21075_ Dropped Cmb. Gravmag System. 21075_ Slug penetrates Wall. 21076_ C-30 ARC bursts open, deploying its payload. 21076_ S-43 Plague unfolds itself. 21079_ P-80 Master resets P-80 Master, system corruption cleaned. 21080_ U-05 Engineer builds a Door. 21080_ Slug penetrates P-80 Master. 21080_ Slug penetrates Door. 21080_ Slammed into P-80 Master. 21080_ Destabilizing: System corrupted (+1). 21081_ Slammed into H-77 Assassin. 21082_ Slug penetrates H-77 Assassin. 21082_ Slammed into H-77 Assassin. Map ----- +----------------------------------------------------+ | ?????????????????????????????????????????????????? | | ?????????????????????????????????????????????????? | | ?????????????????????????????????????????????????? | | ?????????????????????????????????????????????????? | | ?????????????????????????????????????????????????? | | ?????????????????????????????????????????????????? | | ?????????????????????????????????????????????????? | | ?????????????????????????????????????????????????? | | ?????????????????????????????????????????????????? | | ?????????????????????????????????????????????????? | | ????????????????########?########????????????????? | | ???????????????? #? #????????????????? | | ???????????????? #? #????????????????? | | ???????????????""" #"" #????????????????? | | ??????????????#""" #"" #????????????????? | | ??????????????#""" #G #????????????????? | | ??????????????#""" #"" #????????????????? | | ??????????????#""" #"" #????????????????? | | ??????????????? # ??????????????????? | | ????????????????? = ?? ????????????????????? | | ????#+#############;######+####??????????????????? | | ??? "%" = |!!u] #??????????????????? | | ??? " !!! #??????????????????? | | ??? s u #??????????????????? | | ??? pp #??????????????????? | | ??? p@pu #??????????????????? | | ????######## ####+#####hg #??????????????????? | | ???????????# ??? ???# h #??????????????????? | | ???????????# ???? ???# #??????????????????? | | ???????????# ????# ??# g #??????????????????? | | ???????????# ????# ??# #??????????????????? | | ??????????? ?????# ?# ##?????????????????? | | ?????????? ??????# ?# ###########????????? | | ????????#???????# ## # #????????? | | ????????????H???# ## bk # #????????? | | ????????????????# !! ## #""" = #????????? | | #????????????????# !! ## #""" #????????? | | #????????????????# ## #""" #????????? | | #?????????? ???? # # #????????? | | ########### ??####### # #????????? | | #???????# # #????????? | | #???????# ###/######## "%" | | ? #"""????# " | | ?? #""" + #####+###???? | | ????? #""" # #???????????? | | ######### #???????# #???????????? | | # # #???????# #???????????? | | # # #???????# ###/##+####????????? | | / """ # #########! # #????????? | | # """ + ^ !%| / ! =#????????? | +----------------------------------------------------+ Best States ------------- Heat Dissipation 77 Energy Generation 45 Energy Capacity 720 Matter Stores 300 Matter Capacity 300 Sight Range 20 Robot Scan Range 20 Terrain Scan Density 10 Power Amplification 30 Base Temperature (-) 200 Armor Coverage 675 Evasion (%) 64 Targeting Accuracy 6 Melee Accuracy 6 Recoil Reduction 3 Offensive Hacking 52 Defensive Hacking 28 Authchip Count 3 Item Schematics ----------------- Cmb. Gravmag System | -7/Factory | Hacked Adv. Signal Interpreter | -7/Factory | Hacked Combat Drone Bay | -7/Data Miner | Free Lgt. Regenerative Plating | -7/Data Miner | Free Biomechanical Wings | -7/Data Miner | Free Gravity Neutralizer | -7/Data Miner | Free Antimatter Cannon | -7/Data Miner | Free Antigrav System | -7/Data Miner | Free Imp. Weapon Cycler | -7/Data Miner | Free KE Penetrator | -7/Data Miner | Free Lrn. Proton Cannon | -7/Data Miner | Free Phase Gun | -7/Data Miner | Free Adv. System Shield | -5/Factory | Scanalyzed Coolant Injector | -5/Factory | Z-intel Energy Filter | -5/Factory | Z-intel Force Field | -5/Factory | Z-intel Imp. Proton Missile Launcher | -5/Factory | Z-intel Variable Charge Gun | -5/Factory | Z-intel Sml. Storage Unit | -5/Factory | Z-intel System Restoration Module | -5/Factory | Z-intel Imp. Hacking Suite | -5/Factory | Z-intel Adv. Targeting Computer | -5/Factory | Z-intel Drone Bay | -5/Factory | Z-intel EM Disruption Field | -5/Factory | Z-intel Fission Core | -5/Factory | Z-intel Hacking Suite | -5/Factory | Z-intel Gravmag Array | -5/Factory | Z-intel Imp. Titanium Leg | -5/Factory | Z-intel Imp. Transmission Jammer | -5/Factory | Z-intel Mic. Fission Core | -5/Extension | Z-intel Mni. Drone Bay | -5/Extension | Z-intel Flexi-carbon Leg | -5/Extension | Z-intel Launcher Guidance Computer | -5/Extension | Z-intel Imp. Focal Shield | -5/Extension | Z-intel Focal Shield | -5/Extension | Z-intel Tesla Rifle | -5/Extension | Z-intel Com. Battery | -5/Extension | Z-intel Imp. Trap Scanner | -5/Extension | Z-intel Hvy. Plasma Cannon | -5/Extension | Z-intel Imp. Thermal Shield | -5/Extension | Z-intel Matter Compressor | -5/Extension | Z-intel Stasis Canceller | -5/Extension | Z-intel Adv. Hacking Suite | -5/Extension | Z-intel Imp. Remote Datajack | -5/Extension | Z-intel Lgt. Fission Core | -5/Extension | Z-intel Neutron Missile Launcher | -4/Factory | Z-intel Adv. KE Penetrator | -4/Factory | Z-intel Hvy. Wave Gun | -4/Factory | Z-intel Adv. Myomer Leg | -4/Factory | Z-intel Imp. Matter Compressor | -4/Factory | Z-intel Cld. Gravmag System | -4/Factory | Z-intel Exp. Field Recycling Unit | -4/Factory | Z-intel Imp. Lightning Gun | -4/Factory | Z-intel Assault Drone Bay | -4/Zhirov | Free Exp. Heat Sink | -4/Zhirov | Free Exp. Optical Array | -4/Zhirov | Free Imp. Arc Thrower | -4/Zhirov | Free Robot Schematics ------------------ G-47 Trooper | -7/Data Miner | Free A-15 Conveyor | -7/Data Miner | Free H-55 Commando | -7/Data Miner | Free G-50 Soldier | -7/Data Miner | Free R-10 Processor | -7/Data Miner | Free D-63 Destroyer | -7/Data Miner | Free B-60 Warrior | -7/Data Miner | Free Fabricated ------------ Adv. Signal Interpreter | x2 | -7/Factory | Authchip Biomechanical Wings | x1 | -6/Factory | Authchip Cmb. Gravmag System | x2 | -6/Factory | Authchip Cmb. Gravmag System | x2 | -6/Factory | Authchip Combat Drone Bay | x1 | -6/Factory | Authchip Cmb. Gravmag System | x2 | -4/Factory | Authchip Alien Tech Used ----------------- Integrated Reactor Transdimensional Reconstructor Achievements -------------- None Challenges ------------ None Game ------ Seed CoolingGravityJammer Manual? 0 Play Time 03:34:58 Cumulative 342.3 hours Start 2023.03.08 @ 18:01:26 End 2023.03.08 @ 21:42:58 Sessions 1 Manual Loads 0 Difficulty Rogue Special Mode None Game No. 442 Rogue 355 Adventurer 87 Explorer 0 Win Type - Total 13 Types 6/0/5/1/1/0/0/0/0 Lore% 85 Gallery% 87 Achievement% 73 Wizard Run 0 Options --------- ASCII 0 Keyboard 1 Movement Numpad Keybinds 0 Fullscreen 1 Font 18/SmallcapsGlow Map View 76x50 Tactical HUD 1 Map Filters NONE Filters NONE Steam 1 RUN: a246980d-0a58-4aee-9ea1-5a1ed47d5ea6